fUSD/lending_fUSD_20240227
["ID","MTS","AMOUNT","RATE_DAILY","PERIOD"]
[315388269,1709001044028,-500.91984472,0.00022739,2]
[315388271,1709001044037,-574.74053653,0.00022739,2]
[315388273,1709001044046,-501.89984527,0.00022739,2]
[315388275,1709001044055,-500.28726439,0.00022739,2]
[315388277,1709001044065,-500.73383711,0.00022739,2]
[315388279,1709001044075,-500.34602874,0.00022739,2]
[315388281,1709001044084,-250.0519277,0.00022739,2]
[315388283,1709001044093,-500.0,0.00022739,2]
[315388285,1709001044104,-390.86,0.00022739,2]
[315388287,1709001044113,-248.37458832,0.00022739,2]
[315388289,1709001044122,-500.0,0.00022739,2]
[315388291,1709001044131,-494.01088705,0.00022739,2]
[315388293,1709001044140,-500.0,0.00022739,2]
[315388295,1709001044150,-516.5,0.00022739,2]
[315388297,1709001044159,-500.0,0.00022739,2]
[315388299,1709001044170,-500.0,0.00022739,2]
[315388301,1709001044178,-500.0,0.00022739,2]
[315388303,1709001044188,-500.0,0.00022739,2]
[315388305,1709001044198,-515.02,0.00022739,2]
[315388307,1709001044207,-500.0,0.00022739,2]
[315388309,1709001044216,-500.0,0.00022739,2]
[315388311,1709001044226,-500.0,0.00022739,2]
[315388313,1709001044235,-500.0,0.00022739,2]
[315388315,1709001044244,-193.79,0.00022739,2]
[315388317,1709001044253,-500.0,0.00022739,2]
[315388319,1709001044262,-500.0,0.00022739,2]
[315388321,1709001044272,-247.08,0.00022739,2]
[315388323,1709001044282,-500.0,0.00022739,2]
[315388325,1709001044291,-500.0,0.00022739,2]
[315388327,1709001044300,-500.0,0.00022739,2]
[315388329,1709001044310,-512.25115249,0.00022739,2]
[315388331,1709001044319,-500.0,0.00022739,2]
[315388333,1709001044329,-500.0,0.00022739,2]
[315388335,1709001044338,-500.0,0.00022739,2]
[315388337,1709001044349,-469.0,0.00022739,2]
[315388339,1709001044358,-500.0,0.00022739,2]
[315388341,1709001044368,-274.77,0.00022739,2]
[315388343,1709001044377,-500.0,0.00022739,2]
[315388346,1709001044387,-648.51883286,0.00022739,2]
[315388348,1709001044401,-634.03,0.00022739,2]
[315388350,1709001044411,-371.16598174,0.00022739,2]
[315388352,1709001044421,-485.0,0.00022739,2]
[315388354,1709001044430,-150.0,0.00022739,2]
[315388356,1709001044439,-500.0,0.00022739,2]
[315388358,1709001044449,-500.0,0.00022739,2]
[315388360,1709001044458,-460.0,0.00022739,2]
[315388362,1709001044467,-500.0,0.00022739,2]
[315388364,1709001044477,-598.43,0.00022739,2]
[315388366,1709001044486,-557.54217488,0.00022739,2]
[315388368,1709001044495,-500.0,0.00022739,2]
[315388369,1709001044504,-500.0,0.00022739,2]
[315388372,1709001044514,-237.16,0.00022739,2]
[315388374,1709001044523,-500.0,0.00022739,2]
[315388376,1709001044532,-500.0,0.00022739,2]
[315388378,1709001044545,-500.0,0.00022739,2]
[315388380,1709001044554,-500.0,0.00022739,2]
[315388382,1709001044563,-169.28343799,0.00022739,2]
[315388384,1709001044572,-500.0,0.00022739,2]
[315388386,1709001044582,-620.79,0.00022739,2]
[315388388,1709001044591,-500.0,0.00022739,2]
[315388390,1709001044602,-518.11506816,0.00022739,2]
[315388392,1709001044611,-500.0,0.00022739,2]
[315388394,1709001044621,-507.97087577,0.00022739,2]
[315388396,1709001044630,-500.0,0.00022739,2]
[315388398,1709001044640,-500.0,0.00022739,2]
[315388400,1709001044649,-500.0,0.00022739,2]
[315388402,1709001044659,-500.0,0.00022739,2]
[315388404,1709001044668,-500.0,0.00022739,2]
[315388406,1709001044677,-500.0,0.00022739,2]
[315388408,1709001044686,-500.0,0.00022739,2]
[315388410,1709001044695,-522.36513389,0.00022739,2]
[315388412,1709001044704,-500.0,0.00022739,2]
[315388414,1709001044714,-500.0,0.00022739,2]
[315388416,1709001044723,-500.0,0.00022739,2]
[315388418,1709001044733,-500.0,0.00022739,2]
[315388420,1709001044742,-490.0,0.00022739,2]
[315388422,1709001044751,-565.46,0.00022739,2]
[315388424,1709001044760,-500.0,0.00022739,2]
[315388427,1709001044769,-517.89036132,0.00022739,2]
[315388429,1709001044778,-649.02,0.00022739,2]
[315388431,1709001044788,-500.0,0.00022739,2]
[315388433,1709001044796,-195.83101736,0.00022739,2]
[315388435,1709001044806,-500.0,0.00022739,2]
[315388437,1709001044817,-500.0,0.00022739,2]
[315388439,1709001044826,-500.0,0.00022739,2]
[315388441,1709001044835,-500.0,0.00022739,2]
[315388443,1709001044846,-500.0,0.00022739,2]
[315388445,1709001044857,-500.0,0.00022739,2]
[315388447,1709001044866,-500.0,0.00022739,2]
[315388449,1709001044876,-500.0,0.00022739,2]
[315388451,1709001044885,-500.0,0.00022739,2]
[315388453,1709001044894,-500.0,0.00022739,2]
[315388455,1709001044904,-626.87252757,0.00022739,2]
[315388457,1709001044914,-500.0,0.00022739,2]
[315388459,1709001044923,-500.0,0.00022739,2]
[315388461,1709001044932,-500.0,0.00022739,2]
[315388463,1709001044942,-500.0,0.00022739,2]
[315388465,1709001044951,-475.0,0.00022739,2]
[315388467,1709001044961,-500.0,0.00022739,2]
[315388469,1709001044970,-500.0,0.00022739,2]
[315388471,1709001044980,-500.0,0.00022739,2]
[315388473,1709001044990,-535.35854995,0.00022739,2]
[315388475,1709001044999,-500.0,0.00022739,2]
[315388477,1709001045009,-511.13676829,0.00022739,2]
[315388479,1709001045018,-500.0,0.00022739,2]
[315388481,1709001045027,-500.0,0.00022739,2]
[315388483,1709001045037,-501.76616597,0.00022739,2]
[315388485,1709001045046,-500.0,0.00022739,2]
[315388487,1709001045055,-500.0,0.00022739,2]
[315388489,1709001045065,-170.0,0.00022739,2]
[315388491,1709001045074,-500.0,0.00022739,2]
[315388494,1709001045083,-500.0,0.00022739,2]
[315388495,1709001045092,-500.0,0.00022739,2]
[315388498,1709001045102,-500.0,0.00022739,2]
[315388500,1709001045112,-500.0,0.00022739,2]
[315388502,1709001045121,-500.0,0.00022739,2]
[315388504,1709001045130,-508.22971688,0.00022739,2]
[315388506,1709001045139,-530.2784104,0.00022739,2]
[315388508,1709001045148,-500.0,0.00022739,2]
[315388510,1709001045158,-500.0,0.00022739,2]
[315388512,1709001045167,-496.90961381,0.00022739,2]
[315388514,1709001045177,-500.0,0.00022739,2]
[315388516,1709001045186,-500.0,0.00022739,2]
[315388518,1709001045196,-500.0,0.00022739,2]
[315388520,1709001045206,-500.0,0.00022739,2]
[315388522,1709001045215,-500.0,0.00022739,2]
[315388524,1709001045226,-500.0,0.00022739,2]
[315388526,1709001045235,-500.0,0.00022739,2]
[315388528,1709001045245,-521.54317396,0.00022739,2]
[315388530,1709001045254,-500.0,0.00022739,2]
[315388532,1709001045263,-500.0,0.00022739,2]
[315388534,1709001045272,-500.0,0.00022739,2]
[315388536,1709001045282,-500.0,0.00022739,2]
[315388538,1709001045292,-500.0,0.00022739,2]
[315388540,1709001045300,-500.0,0.00022739,2]
[315388542,1709001045310,-500.0,0.00022739,2]
[315388544,1709001045320,-500.0,0.00022739,2]
[315388546,1709001045329,-500.0,0.00022739,2]
[315388548,1709001045338,-500.0,0.00022739,2]
[315388550,1709001045347,-500.0,0.00022739,2]
[315388552,1709001045356,-500.0,0.00022739,2]
[315388555,1709001045380,-500.0,0.00022739,2]
[315388557,1709001045390,-500.0,0.00022739,2]
[315388559,1709001045400,-500.0,0.00022739,2]
[315388561,1709001045411,-500.0,0.00022739,2]
[315388563,1709001045421,-500.0,0.00022739,2]
[315388566,1709001045431,-500.0,0.00022739,2]
[315388568,1709001045441,-500.0,0.00022739,2]
[315388569,1709001045451,-500.0,0.00022739,2]
[315388571,1709001045462,-500.0,0.00022739,2]
[315388574,1709001045471,-500.0,0.00022739,2]
[315388576,1709001045481,-500.0,0.00022739,2]
[315388578,1709001045491,-500.0,0.00022739,2]
[315388580,1709001045500,-500.0,0.00022739,2]
[315388582,1709001045509,-527.45249562,0.00022739,2]
[315388584,1709001045519,-500.0,0.00022739,2]
[315388586,1709001045528,-500.0,0.00022739,2]
[315388588,1709001045537,-500.0,0.00022739,2]
[315388590,1709001045547,-500.0,0.00022739,2]
[315388592,1709001045556,-451.49283059,0.00022739,2]
[315388594,1709001045566,-500.0,0.00022739,2]
[315388596,1709001045575,-500.0,0.00022739,2]
[315388598,1709001045585,-538.87,0.00022739,2]
[315388600,1709001045595,-500.0,0.00022739,2]
[315388602,1709001045605,-500.0,0.00022739,2]
[315388604,1709001045615,-500.0,0.00022739,2]
[315388606,1709001045624,-500.0,0.00022739,2]
[315388609,1709001045635,-500.0,0.00022739,2]
[315388612,1709001045645,-238.41,0.00022739,2]
[315388615,1709001045654,-500.0,0.00022739,2]
[315388618,1709001045664,-500.0,0.00022739,2]
[315388621,1709001045673,-500.0,0.00022739,2]
[315388623,1709001045684,-500.0,0.00022739,2]
[315388625,1709001045693,-500.0,0.00022739,2]
[315388627,1709001045702,-500.0,0.00022739,2]
[315388629,1709001045713,-500.0,0.00022739,2]
[315388631,1709001045722,-500.0,0.00022739,2]
[315388633,1709001045732,-500.0,0.00022739,2]
[315388635,1709001045741,-158.03940898,0.00022739,2]
[315388637,1709001045750,-500.0,0.00022739,2]
[315388639,1709001045760,-500.0,0.00022739,2]
[315388641,1709001045769,-500.0,0.00022739,2]
[315388643,1709001045778,-500.0,0.00022739,2]
[315388646,1709001045788,-500.0,0.00022739,2]
[315388648,1709001045797,-500.0,0.00022739,2]
[315388650,1709001045806,-517.28277931,0.00022739,2]
[315388652,1709001045814,-500.0,0.00022739,2]
[315388654,1709001045824,-500.0,0.00022739,2]
[315388656,1709001045832,-508.93282362,0.00022739,2]
[315388658,1709001045841,-500.0,0.00022739,2]
[315388660,1709001045852,-589.74,0.00022739,2]
[315388662,1709001045861,-576.39930629,0.00022739,2]
[315388664,1709001045871,-500.0,0.00022739,2]
[315388666,1709001045880,-470.0,0.00022739,2]
[315388668,1709001045889,-500.0,0.00022739,2]
[315388670,1709001045899,-500.0,0.00022739,2]
[315388672,1709001045908,-428.86,0.00022739,2]
[315388674,1709001045919,-405.19,0.00022739,2]
[315388676,1709001045928,-500.0,0.00022739,2]
[315388678,1709001045938,-500.0,0.00022739,2]
[315388680,1709001045947,-340.07033988,0.00022739,2]
[315388682,1709001045958,-500.0,0.00022739,2]
[315388684,1709001045968,-500.0,0.00022739,2]
[315388686,1709001045978,-500.0,0.00022739,2]
[315388712,1709001046200,-230.96,0.00022739,2]
[315388714,1709001046210,-500.0,0.00022739,2]
[315388716,1709001046219,-500.0,0.00022739,2]
[315388718,1709001046228,-500.0,0.00022739,2]
[315388720,1709001046237,-215.4,0.00022739,2]
[315388722,1709001046246,-500.0,0.00022739,2]
[315388724,1709001046256,-500.0,0.00022739,2]
[315388726,1709001046265,-500.0,0.00022739,2]
[315388728,1709001046274,-500.0,0.00022739,2]
[315388730,1709001046283,-500.0,0.00022739,2]
[315388732,1709001046293,-500.0,0.00022739,2]
[315388734,1709001046303,-500.0,0.00022739,2]
[315388736,1709001046312,-160.7863418,0.00022739,2]
[315388738,1709001046321,-500.0,0.00022739,2]
[315388740,1709001046330,-500.0,0.00022739,2]
[315388742,1709001046340,-500.0,0.00022739,2]
[315388744,1709001046349,-500.0,0.00022739,2]
[315388746,1709001046359,-500.0,0.00022739,2]
[315388748,1709001046368,-500.0,0.00022739,2]
[315388750,1709001046377,-500.0,0.00022739,2]
[315388752,1709001046387,-500.0,0.00022739,2]
[315388754,1709001046399,-503.64524962,0.00022739,2]
[315388756,1709001046408,-500.0,0.00022739,2]
[315388758,1709001046417,-508.92770566,0.00022739,2]
[315388760,1709001046427,-505.94565004,0.00022739,2]
[315388762,1709001046436,-570.08,0.00022739,2]
[315388764,1709001046445,-500.0,0.00022739,2]
[315388766,1709001046454,-529.24,0.00022739,2]
[315388768,1709001046463,-500.0,0.00022739,2]
[315388770,1709001046473,-500.0,0.00022739,2]
[315388772,1709001046483,-500.0,0.00022739,2]
[315388774,1709001046493,-500.0,0.00022739,2]
[315388776,1709001046502,-347.07,0.00022739,2]
[315388779,1709001046511,-500.0,0.00022739,2]
[315388781,1709001046521,-560.36,0.00022739,2]
[315388783,1709001046530,-500.0,0.00022739,2]
[315388785,1709001046539,-496.84786722,0.00022739,2]
[315388787,1709001046548,-500.0,0.00022739,2]
[315388789,1709001046558,-500.0,0.00022739,2]
[315388790,1709001046567,-389.9641604,0.00022739,2]
[315388792,1709001046577,-432.46014056,0.00022739,2]
[315388793,1709001046587,-500.0,0.00022739,2]
[315388794,1709001046597,-500.0,0.00022739,2]
[315388795,1709001046607,-500.0,0.00022739,2]
[315388796,1709001046616,-500.0,0.00022739,2]
[315388797,1709001046625,-500.0,0.00022739,2]
[315388798,1709001046635,-604.64,0.00022739,2]
[315388799,1709001046644,-500.0,0.00022739,2]
[315388800,1709001046653,-315.15251795,0.00022739,2]
[315388801,1709001046662,-548.07216817,0.00022739,2]
[315388803,1709001046672,-500.0,0.00022739,2]
[315388805,1709001046681,-500.0,0.00022739,2]
[315388807,1709001046691,-500.0,0.00022739,2]
[315388809,1709001046700,-500.0,0.00022739,2]
[315388811,1709001046709,-399.97785913,0.00022739,2]
[315388813,1709001046718,-500.0,0.00022739,2]
[315388815,1709001046728,-500.0,0.00022739,2]
[315388817,1709001046737,-500.0,0.00022739,2]
[315388819,1709001046747,-500.0,0.00022739,2]
[315388821,1709001046757,-519.28954902,0.00022739,2]
[315388823,1709001046767,-500.0,0.00022739,2]
[315388825,1709001046776,-500.0,0.00022739,2]
[315388827,1709001046786,-500.0,0.00022739,2]
[315388829,1709001046797,-500.0,0.00022739,2]
[315388831,1709001046805,-390.11,0.00022739,2]
[315388833,1709001046815,-324.09099594,0.00022739,2]
[315388835,1709001046824,-500.0,0.00022739,2]
[315388837,1709001046835,-500.0,0.00022739,2]
[315388839,1709001046848,-500.0,0.00022739,2]
[315388841,1709001046859,-500.0,0.00022739,2]
[315388843,1709001046868,-508.88768823,0.00022739,2]
[315388845,1709001046876,-500.0,0.00022739,2]
[315388847,1709001046885,-500.0,0.00022739,2]
[315388849,1709001046895,-546.53267588,0.00022739,2]
[315388851,1709001046904,-500.0,0.00022739,2]
[315388854,1709001046913,-500.0,0.00022739,2]
[315388856,1709001046923,-500.0,0.00022739,2]
[315388858,1709001046932,-500.0,0.00022739,2]
[315388860,1709001046941,-500.0,0.00022739,2]
[315388862,1709001046950,-500.0,0.00022739,2]
[315388864,1709001046959,-500.0,0.00022739,2]
[315388866,1709001046969,-508.2,0.00022739,2]
[315388868,1709001046978,-562.80732093,0.00022739,2]
[315388870,1709001046988,-500.0,0.00022739,2]
[315388872,1709001046997,-370.90188946,0.00022739,2]
[315388874,1709001047006,-500.0,0.00022739,2]
[315388876,1709001047015,-500.0,0.00022739,2]
[315388878,1709001047024,-411.3,0.00022739,2]
[315388880,1709001047034,-500.0,0.00022739,2]
[315388882,1709001047043,-518.61580705,0.00022739,2]
[315388884,1709001047052,-541.19,0.00022739,2]
[315388886,1709001047062,-500.0,0.00022739,2]
[315388888,1709001047071,-500.0,0.00022739,2]
[315388890,1709001047080,-500.0,0.00022739,2]
[315388892,1709001047090,-152.39,0.0002274,2]
[315388894,1709001047099,-25520.75427157,0.00022838,4]
[315388901,1709001047158,-3161.86289347,0.00022838,4]
[315389064,1709001055047,-51719.00000005,0.00019505,2]
[315389065,1709001055059,-349.74553949,0.00019505,2]
[315389066,1709001055071,-2999.99983619,0.00019505,2]
[315389067,1709001055082,-282144.6303979,0.00019505,2]
[315389068,1709001055119,-316.84342245,0.00019505,2]
[315389069,1709001055132,-11266.4,0.00019505,2]
[315389070,1709001055143,-2074.78847333,0.00019505,2]
[315389071,1709001055155,-5558.88113735,0.00019505,2]
[315389072,1709001055184,-1444.620031,0.00019505,2]
[315389073,1709001055256,-318.17604449,0.00019505,2]
[315389074,1709001055339,-706130.86925467,0.00019505,2]
[315389075,1709001055349,-295.00971376,0.00022738,2]
[315389076,1709001055360,-1050.10190362,0.00022738,2]
[315389077,1709001055370,-500.0,0.00022739,2]
[315389078,1709001055381,-320.436594,0.00022739,2]
[315389079,1709001055390,-500.0,0.00022739,2]
[315389080,1709001055400,-500.0,0.00022739,2]
[315389081,1709001055411,-500.0,0.00022739,2]
[315389082,1709001055422,-500.0,0.00022739,2]
[315389083,1709001055432,-629999.61288766,0.00022838,4]
[315389084,1709001055450,-500.0,0.00022739,2]
[315389085,1709001055459,-481.41712934,0.00022838,4]
[315389086,1709001055483,-12435.31051828,0.00022837,2]
[315389087,1709001055492,-8856.00911911,0.00022838,4]
[315389088,1709001055501,-8737.84400376,0.00022838,2]
[315389116,1709001327623,20000.0,0.0002,10]
[315389118,1709001521611,64630.21724305,0.00022,7]
[315389119,1709001565646,5218.0,0.00027,120]
[315389120,1709002044105,-300.96493235,0.00018264,2]
[315389122,1709002050107,-72.14506765,0.00018264,2]
[315389123,1709002050128,-500.0,0.000195,2]
[315389124,1709002050148,-126.21653048,0.00019503,2]
[315389126,1709002159122,-399.73989273,0.00019404,2]
[315389127,1709002174045,150.0,0.00018983,2]
[315389128,1709002174071,52.0,0.00018983,2]
[315389129,1709002198736,108.23,0.00018983,2]
[315389133,1709002232032,-27466.22951702,0.00018983,2]
[315389134,1709002232044,-69252.96059029,0.00018983,2]
[315389136,1709002232211,-50307.21950724,0.00018983,2]
[315389137,1709002232223,-524.25310598,0.00018983,2]
[315389138,1709002232235,-417.95,0.00018983,2]
[315389139,1709002232381,-29739.9107062,0.00018983,2]
[315389140,1709002237927,-257624.79413892,0.00018983,2]
[315389141,1709002237939,-162400.315794,0.00018983,2]
[315389142,1709002238107,-6312.9126911,0.00018983,2]
[315389143,1709002238143,-2766.82803729,0.00018983,2]
[315389144,1709002238201,-4027.31374137,0.00018983,2]
[315389145,1709002238291,-222362.06110686,0.00018983,2]
[315389146,1709002238302,-100918.69602991,0.00018983,2]
[315389856,1709002244903,-130094.27917074,0.00018983,2]
[315389858,1709002244912,-150.0,0.00018983,2]
[315389860,1709002244922,-635.29394509,0.00018983,2]
[315389862,1709002244931,-204.99998,0.00018983,2]
[315389864,1709002244940,-87.01564815,0.00019503,2]
[315389866,1709002244949,-1927.12131092,0.00019504,2]
[315389868,1709002244959,-154.10433286,0.000198,2]
[315389871,1709002244972,-164.67455994,0.000199,2]
[315389873,1709002244981,-487.38902368,0.000199,2]
[315389875,1709002244990,-150.0,0.00019945,2]
[315389877,1709002244999,-154.10433277,0.00019978,2]
[315389879,1709002245009,-150.0,0.00019998,2]
[315389881,1709002245018,-300.0,0.00019998,2]
[315389883,1709002245027,-10000.0,0.00019999,2]
[315389885,1709002245036,-500.0,0.0002,2]
[315389887,1709002245045,-216.34295744,0.0002,2]
[315389889,1709002245055,-200.59739601,0.0002,2]
[315389892,1709002245064,-168.23,0.00020071,2]
[315389895,1709002245073,-298.22,0.00020075,2]
[315389897,1709002245082,-150.0,0.00020126,2]
[315389899,1709002245092,-320.0,0.0002013,2]
[315389901,1709002245101,-154.10433277,0.00020156,2]
[315389903,1709002245110,-645.58018076,0.00020201,2]
[315389905,1709002245119,-250.0,0.00020236,2]
[315389907,1709002245128,-500.0,0.00020252,2]
[315389909,1709002245138,-202.0,0.00020265,3]
[315389911,1709002245149,-154.10433277,0.00020334,2]
[315389913,1709002245158,-185.91,0.00020373,2]
[315389915,1709002245167,-154.10433277,0.00020512,2]
[315389917,1709002245176,-373.11,0.00020528,2]
[315389919,1709002245186,-2000.0,0.00020548,2]
[315389921,1709002245195,-154.10433277,0.0002069,2]
[315389923,1709002245204,-674.21,0.00020702,2]
[315389925,1709002245213,-499.99,0.0002072,2]
[315389927,1709002245223,-154.10433277,0.00020868,2]
[315389929,1709002245232,-645.58018076,0.00020997,2]
[315389931,1709002245241,-500.0,0.00021,2]
[315389932,1709002245254,-154.10433277,0.00021045,2]
[315389933,1709002245263,-154.10433277,0.00021223,2]
[315389934,1709002245272,-207.07,0.00021334,2]
[315389935,1709002245282,-1013.09,0.0002137,2]
[315389936,1709002245291,-154.10433277,0.00021401,2]
[315389937,1709002245300,-185.91,0.00021435,2]
[315389938,1709002245309,-680.0,0.00021489,2]
[315389939,1709002245319,-202.0,0.00021547,5]
[315389940,1709002245328,-154.10433277,0.00021579,2]
[315389942,1709002245337,-154.10433277,0.00021757,2]
[315389944,1709002245348,-645.58018076,0.00021794,2]
[315389947,1709002245357,-919.07,0.00021839,2]
[315389949,1709002245367,-919.07,0.00021839,2]
[315389950,1709002245378,-919.07,0.00021839,2]
[315389953,1709002245388,-919.07,0.00021839,2]
[315389954,1709002245398,-882.89,0.00021839,2]
[315389956,1709002245407,-919.07,0.00021841,2]
[315389959,1709002245417,-1050.10190362,0.0002185,2]
[315389961,1709002245427,-912.11673153,0.00021899,2]
[315389963,1709002245436,-797.35194404,0.000219,2]
[315389965,1709002245446,-510.2613,0.000219,2]
[315389967,1709002245456,-207.7764,0.000219,2]
[315389969,1709002245465,-879.5512,0.000219,2]
[315389971,1709002245474,-820.1388,0.000219,2]
[315389973,1709002245484,-26119.0022,0.000219,2]
[315389975,1709002245494,-12359.24279999,0.000219,2]
[315389977,1709002245503,-5000.0,0.000219,2]
[315389979,1709002245515,-279.84763483,0.00021908,5]
[315389981,1709002245525,-258.96856557,0.00021908,2]
[315389983,1709002245535,-154.04,0.00021918,2]
[315389985,1709002245544,-426.17,0.00021918,3]
[315389987,1709002245554,-151.05,0.00021918,2]
[315389989,1709002245564,-154.10433277,0.00021935,2]
[315389992,1709002245573,-496.75987745,0.00021935,2]
[315389994,1709002245583,-202.30948791,0.00021979,2]
[315389996,1709002245592,-632.93491852,0.00021979,2]
[315389998,1709002245602,-632.93491852,0.00021979,2]
[315390000,1709002245612,-159.67346337,0.00021979,2]
[315390002,1709002245621,-1758.15255131,0.00021979,2]
[315390004,1709002245630,-307.06435265,0.0002198,2]
[315390006,1709002245640,-13565.99190774,0.0002198,2]
[315390008,1709002245650,-227.85657071,0.00021983,2]
[315390010,1709002245660,-632.93491852,0.00021983,2]
[315390012,1709002245670,-4883.75708683,0.00021983,2]
[315390014,1709002245679,-202.30948791,0.00021984,2]
[315390016,1709002245689,-1758.15255131,0.00021984,2]
[315390018,1709002245698,-227.85657071,0.00021984,2]
[315390020,1709002245710,-159.67346337,0.00021984,2]
[315390022,1709002245719,-227.85657071,0.00021985,2]
[315390052,1709002245964,-4883.75708683,0.00021988,2]
[315390054,1709002245974,-159.67346337,0.00021989,2]
[315390056,1709002245983,-307.06435265,0.00021989,2]
[315390058,1709002245992,-212.21466255,0.00021989,2]
[315390060,1709002246002,-13565.99190774,0.00021989,2]
[315390062,1709002246011,-408.10512029,0.00021989,2]
[315390064,1709002246020,-13565.99190774,0.0002199,2]
[315390066,1709002246030,-212.21466255,0.00021991,2]
[315390068,1709002246039,-212.21466255,0.00021991,2]
[315390070,1709002246049,-4883.75708683,0.00021992,2]
[315390072,1709002246061,-159.67346337,0.00021993,2]
[315390075,1709002246070,-408.10512029,0.00021993,2]
[315390077,1709002246079,-202.30948791,0.00021993,2]
[315390079,1709002246089,-408.10512029,0.00021993,2]
[315390081,1709002246098,-13565.99190774,0.00021996,2]
[315390082,1709002246107,-307.06435265,0.00021996,2]
[315390085,1709002246117,-307.06435265,0.00021996,2]
[315390087,1709002246127,-1758.15255131,0.00021996,2]
[315390089,1709002246137,-227.85657071,0.00021996,2]
[315390091,1709002246146,-202.30948791,0.00021997,2]
[315390093,1709002246157,-4883.75708683,0.00021997,2]
[315390095,1709002246166,-408.10512029,0.00021998,2]
[315390097,1709002246175,-632.93491852,0.00021998,2]
[315390099,1709002246185,-212.21466255,0.00021999,2]
[315390100,1709002246193,-175.69284023,0.00021999,2]
[315390102,1709002246202,-1758.15255131,0.00022,2]
[315390104,1709002246212,-11862.78912153,0.00022,2]
[315390106,1709002246221,-500.0,0.00022,3]
[315390109,1709002246231,-66613.49521591,0.00022,7]
[315390112,1709002246253,-166561.4795961,0.00022,7]
[315390114,1709002246266,-28280.84365585,0.00022,7]
[315390116,1709002246278,-5396.75657731,0.00022,7]
[315390119,1709002246291,-2041.93986332,0.00022,7]
[315390121,1709002246303,-1347.64752779,0.00022,7]
[315390123,1709002246314,-4860.69809969,0.00022,7]
[315390126,1709002246326,-492.88823747,0.00022,7]
[315390129,1709002246347,-3756.5049696,0.00022,7]
[315390136,1709002246405,-1116.8642382,0.00022,7]
[315390139,1709002246421,-561.81,0.00022,7]
[315390147,1709002246490,-73418.59708655,0.00022,7]
[315390149,1709002246503,-44999.99500001,0.00022,7]
[315390152,1709002246515,-13246.30917255,0.00022,7]
[315390154,1709002246526,-21388.3044,0.00022,7]
[315390157,1709002246543,-5618.6148,0.00022,7]
[315390248,1709003252170,-155.0,0.00018409,2]
[315390249,1709003252191,-1089.19599619,0.00018409,2]
[315390256,1709003350130,-367.07,0.00017982,2]
[315390257,1709003350151,-1244.0,0.00018408,2]
[315390258,1709003350174,-300.0,0.00018408,2]
[315390259,1709003350197,-157039.96,0.00018409,2]
[315390260,1709003354118,-24571.34842492,0.00018409,2]
[315390261,1709003355164,-5564.9325,0.00018409,2]
[315390262,1709003357109,-5128.49469276,0.00018409,2]
[315390263,1709003361119,-56834.87703511,0.00018409,2]
[315390264,1709003363097,-17501.34294345,0.00018409,2]
[315390265,1709003365091,-25749.892,0.00018409,2]
[315390266,1709003375980,151.0,0.00026938,120]
[315390279,1709003432258,-412.50147131,0.0001831,2]
[315390280,1709003432268,-189.94197696,0.00018408,2]
[315390281,1709003432279,-1443.01562339,0.00018408,2]
[315390282,1709003432318,-655.60712406,0.00018408,2]
[315390283,1709003432329,-631.3354494,0.00018408,2]
[315390284,1709003432341,-1254.65468765,0.00018408,2]
[315390285,1709003432350,-155.0,0.0001841,2]